bitfinex-derivatives/quotes_SOLF0:USTF0_20250523
["timestamp","ask_amount","ask_price","bid_price","bid_amount"]
[1747962491715,0.0365085,180.6,180.58,5.5366]
[1747962492014,0.0365085,180.6,180.57,2.0343]
[1747962493115,0.0365085,180.6,180.58,5.5366]
[1747962493317,0.0365085,180.6,180.57,2.0343]
[1747962493711,0.0365085,180.6,180.58,5.5366]
[1747962494014,0.0365085,180.6,180.57,2.0343]
[1747962494409,0.0365085,180.6,180.57,7.571]
[1747962495418,0.0365085,180.6,180.57,2.0343]
[1747962495619,5.5726085,180.6,180.57,2.0343]
[1747962496119,0.0365085,180.6,180.57,2.0343]
[1747962496615,0.0365085,180.6,180.57,7.5711]
[1747962496919,5.5725085,180.6,180.57,7.5711]
[1747962497410,5.5725085,180.6,180.57,2.0343]
[1747962497919,0.0365085,180.6,180.57,2.0343]
[1747962498120,0.0365085,180.6,180.56,0.03605617]
[1747962498325,5.5364,180.59,180.56,0.03605617]
[1747962499022,5.5726085,180.6,180.56,5.57325617]
[1747962501318,0.0365085,180.6,180.58,5.5365]
[1747962502324,0.0365085,180.6,180.59,5.5363]
[1747962502922,125.46,180.65,180.62,5.5352]
[1747962503422,17.77236123,180.66,180.59,105.22]
[1747962503621,125.44,180.69,180.63,5.5348]
[1747962504022,5.5341,180.67,180.64,0.04250706]
[1747962504223,0.03678644,180.68,180.64,0.04250706]
[1747962504419,5.5344,180.65,180.64,0.04250706]
[1747962505224,5.5339,180.67,180.64,0.04250706]
[1747962505528,0.03678644,180.68,180.64,0.04250706]
[1747962505729,5.534,180.67,180.64,0.04250706]
[1747962505927,0.03678644,180.68,180.64,0.04250706]
[1747962506229,5.5345,180.65,180.64,0.04250706]
[1747962507228,5.5342,180.66,180.64,0.04250706]
[1747962507418,0.03678644,180.68,180.64,0.04250706]
[1747962508537,0.03678644,180.68,180.67,5.5338]
[1747962510126,0.03678644,180.68,180.66,5.5341]
[1747962510621,0.03678644,180.68,180.65,5.5343]
[1747962511335,5.57048644,180.68,180.65,5.5343]
[1747962511535,0.03678644,180.68,180.64,0.04250706]
[1747962512532,0.03678644,180.68,180.67,5.5338]
[1747962513635,0.03678644,180.68,180.66,5.534]
[1747962513936,0.03678644,180.68,180.64,0.04250706]
[1747962514328,5.5339,180.67,180.64,5.57720706]
[1747962514529,0.03678644,180.68,180.64,0.04250706]
[1747962515638,5.5342,180.66,180.64,0.04250706]
[1747962516025,0.03678644,180.68,180.64,0.04250706]
[1747962516239,0.03678644,180.68,180.65,5.5342]
[1747962516432,0.03678644,180.68,180.64,0.04250706]
[1747962516628,0.03678644,180.68,180.67,5.5338]
[1747962516834,130.9521,180.73,180.64,0.04250706]
[1747962517041,125.42,180.73,180.64,0.04250706]
[1747962518038,478.5,180.75,180.64,0.04250706]
[1747962518039,6.207e-05,180.7,180.69,5.5332]
[1747962518239,5.0906229,180.78,180.69,230.48]
[1747962518441,5.5311,180.76,180.73,5.5317]
[1747962518636,5.0906229,180.78,180.69,230.48]
[1747962518939,0.03647201,180.75,180.72,0.03539238]
[1747962519639,0.03647201,180.75,180.73,5.532]
[1747962520042,0.03647201,180.75,180.72,0.03539238]
[1747962520233,5.56787201,180.75,180.72,5.56769238]
[1747962520542,0.03647201,180.75,180.72,0.03539238]
[1747962520741,0.03647201,180.75,180.73,5.5317]
[1747962521241,0.03647201,180.75,180.74,5.5317]
[1747962522448,125.3,180.81,180.73,1.8735]
[1747962522947,125.3,180.81,180.75,5.5312]
[1747962523242,125.3,180.81,180.73,1.8735]
[1747962523450,0.03596632,180.79,180.75,0.04006341]
[1747962524144,5.5308,180.77,180.75,0.04006341]
[1747962524351,0.03596632,180.79,180.75,0.04006341]
[1747962524749,5.5305,180.78,180.75,0.04006341]
[1747962524948,0.03596632,180.79,180.75,0.04006341]
[1747962528656,5.5308,180.77,180.75,0.04006341]
[1747962529454,5.5311,180.76,180.75,0.04006341]
[1747962533061,0.03596632,180.79,180.75,0.04006341]
[1747962533853,0.03596632,180.79,180.76,5.531]
[1747962534155,0.03596632,180.79,180.75,0.04006341]
[1747962534350,0.03596632,180.79,180.77,5.5306]
[1747962534550,0.03596632,180.79,180.75,0.04006341]
[1747962535251,0.03596632,180.79,180.78,5.5305]
[1747962540264,0.03596632,180.79,180.75,105.16006341]
[1747962541158,0.03596632,180.79,180.77,5.5306]
[1747962541463,0.03596632,180.79,180.75,105.16006341]
[1747962541664,0.03596632,180.79,180.78,5.5305]
[1747962542166,5.5283,180.86,180.83,5.5286]
[1747962542663,5.5283,180.86,180.79,125.04]
[1747962542860,5.5278,180.87,180.8,1.9442]
[1747962543057,0.04022363,180.85,180.82,0.04004677]
[1747962543456,5.0906229,180.92,180.82,110.17035692]
[1747962543660,5.11542196,180.95,180.91,5.01031015]
[1747962543853,2.04172196,180.95,180.94,5.5256]
[1747962544053,2.04172196,180.95,180.92,232.1404]
[1747962544360,2.04172196,180.95,180.94,5.5256]
[1747962544361,2.08377651,180.95,180.94,5.5256]
[1747962544663,2.08377651,180.95,180.92,232.1764062]
[1747962545065,7.60907651,180.95,180.92,237.7024062]
[1747962545261,2.08377651,180.95,180.92,232.1764062]
[1747962545960,2.08377651,180.95,180.94,5.5256]
[1747962546263,2.08377651,180.95,180.92,232.1764062]
[1747962546769,2.08377651,180.95,180.94,5.5256]
[1747962546956,0.04205455,180.95,180.94,5.5256]
[1747962547161,125.04,181.03,180.92,232.1764062]
[1747962547360,5.5237,181.01,180.92,232.1404]
[1747962547566,125.04,181.03,180.92,232.1404]
[1747962547969,5.5237,181.01,180.97,5.5245]
[1747962548162,0.03815578,181.01,180.97,0.03556485]
[1747962548659,0.03815578,181.01,180.98,5.5243]
[1747962549257,0.03815578,181.01,180.99,5.524]
[1747962549568,0.03815578,181.01,180.97,125.01556485]
[1747962551269,5.56165578,181.01,180.97,130.54016485]
[1747962551566,0.03815578,181.01,180.97,125.01556485]
[1747962551769,5.56175578,181.01,180.97,130.54016485]
[1747962551957,0.03815578,181.01,180.97,125.01556485]
[1747962552571,0.03815578,181.01,180.98,5.5243]
[1747962552865,0.03815578,181.01,180.97,125.01556485]
[1747962553056,477.98,181.12,180.99,7.99328821]
[1747962553265,5.7661,181.15,181.0,105.04]
[1747962553772,5.7661,181.15,181.01,1.9547]
[1747962553973,0.02621398,181.1,181.06,0.03860703]
[1747962554266,0.02621398,181.1,181.09,5.5209]
[1747962554964,0.02621398,181.1,181.06,0.03860703]
[1747962555469,5.54691398,181.1,181.07,5.5214]
[1747962555666,0.02621398,181.1,181.06,0.03860703]
[1747962555868,0.02621398,181.1,181.07,124.92]
[1747962556070,0.02621398,181.1,181.09,5.521]
[1747962556472,6.7874972,181.18,181.08,105.02]
[1747962556770,128.6782,181.21,181.08,105.02]
[1747962557174,5.5188,181.17,181.13,5.5196]
[1747962557472,128.6782,181.21,181.13,5.55699543]
[1747962557771,5.5188,181.17,181.13,5.55699543]
[1747962557970,128.6782,181.21,181.14,5.5194]
[1747962558270,5.5185,181.18,181.14,5.5194]
[1747962558572,128.6782,181.21,181.13,5.55709543]
[1747962558769,5.5189,181.16,181.13,0.03739543]
[1747962559265,5.5195,181.14,181.13,0.03739543]
[1747962559467,124.86,181.16,181.03,124.86]
[1747962559769,124.86,181.15,181.03,124.86]
[1747962560271,124.86,181.15,181.04,5.5224]
[1747962560468,0.03730706,181.11,181.08,0.03683638]
[1747962561171,5.521,181.09,181.08,0.03683638]
[1747962561969,5.5224,181.05,180.99,1.9578]
[1747962562177,124.84,181.09,181.0,5.5237]
[1747962562178,1.9593,181.08,181.0,5.5237]
[1747962562363,5.5224,181.05,180.98,124.84]
[1747962562674,5.5224,181.05,181.01,5.5232]
[1747962562870,1.9593,181.08,181.01,0.0372979]
[1747962563171,0.03913379,181.05,181.01,0.0372979]
[1747962563371,0.03913379,181.05,181.02,5.5229]
[1747962564978,0.03913379,181.05,181.03,5.5228]
[1747962565783,0.03913379,181.05,181.04,5.5225]
[1747962570882,0.03913379,181.05,181.01,0.0372979]
[1747962571485,0.03913379,181.05,181.02,5.5231]
[1747962572084,0.03913379,181.05,181.03,5.5228]
[1747962574874,5.5227,181.04,181.01,0.0372979]
[1747962575191,0.03913379,181.05,181.01,0.0372979]
[1747962575994,5.56133379,181.05,181.02,5.5229]
[1747962576686,0.03913379,181.05,181.02,5.5229]
[1747962576885,0.03913379,181.05,181.01,0.0372979]
[1747962577477,0.03913379,181.05,181.04,5.5225]
[1747962582693,3.379e-05,181.05,181.04,5.5225]
[1747962588993,124.58,181.17,181.03,129.59190297]
[1747962589298,124.58,181.17,181.16,5.5189]
[1747962589499,6.7874972,181.19,181.09,124.58]
[1747962589699,6.7874972,181.19,181.1,3.9747]
[1747962589892,9.802e-05,181.16,181.15,5.5192]
[1747962590094,6.7874972,181.19,181.14,4.99190297]
[1747962591103,6.7874972,181.19,181.12,6.95967609]
[1747962591597,6.7874972,181.19,181.12,1.96777312]
[1747962592097,12.3055972,181.19,181.16,5.5188]
[1747962592303,12.3055972,181.19,181.16,5.55367442]
[1747962592503,3.8316,181.25,181.16,0.03487442]
[1747962592704,3.8316,181.25,181.17,5.5186]
[1747962593003,3.8316,181.25,181.16,0.03487442]
[1747962594212,5.5181,181.19,181.16,5.55367442]
[1747962594612,124.56,181.21,181.16,5.55367442]
[1747962595312,5.518,181.19,181.16,5.55367442]
[1747962595516,124.56,181.21,181.16,5.55367442]
[1747962595813,5.5179,181.2,181.16,5.55367442]
[1747962596013,6.7874972,181.29,181.16,0.03487442]
[1747962596218,6.7874972,181.29,181.21,0.04069752]
[1747962596406,6.7874972,181.29,181.24,5.5162]
[1747962596715,6.7874972,181.29,181.25,0.03645301]
[1747962596917,6.7874972,181.29,181.25,0.03925474]
[1747962597514,6.7874972,181.29,181.25,5.55515474]
[1747962597715,6.7874972,181.29,181.25,0.03925474]
[1747962597916,5.5158,181.27,181.25,0.03925474]
[1747962598119,6.7874972,181.29,181.16,104.9]
[1747962598415,5.5164,181.25,181.16,104.9]
[1747962598610,124.52,181.24,181.16,104.9]
[1747962598916,124.52,181.24,181.22,5.517]
[1747962599115,124.52,181.24,181.21,0.04084345]
[1747962600017,124.52,181.24,181.23,5.5168]
[1747962600515,0.03606003,181.25,181.21,0.04084345]
[1747962600720,5.55246003,181.25,181.21,5.55794345]
[1747962601016,5.55246003,181.25,181.21,0.04084345]
[1747962601616,0.03606003,181.25,181.21,0.04084345]
[1747962602913,0.03606003,181.25,181.23,5.5167]
[1747962603517,0.03606003,181.25,181.22,5.517]
[1747962603719,0.03606003,181.25,181.21,0.04084345]
[1747962604627,0.03606003,181.25,181.23,5.5165]
[1747962604923,0.03606003,181.25,181.21,0.04084345]
[1747962605230,0.03606003,181.25,181.24,5.5164]
[1747962605418,3.9216,181.34,181.21,0.04084345]
[1747962605618,130.9674972,181.35,181.22,7.97629713]
[1747962606031,6.7874972,181.35,181.22,7.97629713]
[1747962606414,6.7874972,181.35,181.34,5.5134]
[1747962606627,10.18124581,181.38,181.33,0.04228377]
[1747962606822,10.18124581,181.38,181.34,0.03721034]
[1747962607024,10.62236807,181.43,181.34,0.03721034]
[1747962607224,5.11156807,181.43,181.34,0.03721034]
[1747962607632,5.5113,181.41,181.37,5.5123]
[1747962607830,5.11156807,181.43,181.37,0.04050641]
[1747962608331,5.5122,181.38,181.37,0.04050641]
[1747962611832,124.16,181.4,181.37,0.04050641]
[1747962611833,5.512,181.39,181.37,0.04050641]
[1747962612133,124.16,181.4,181.37,0.04050641]
[1747962612332,129.6717,181.4,181.37,0.04050641]
[1747962612536,126.0544,181.42,181.37,0.04050641]
[1747962612726,1.9144,181.42,181.37,0.04050641]
[1747962612927,124.12,181.44,181.37,0.04050641]
[1747962613122,124.12,181.44,181.39,0.04173421]
[1747962613938,5.5113,181.41,181.39,0.04173421]
[1747962614236,124.12,181.44,181.39,0.04173421]
[1747962614436,124.12,181.44,181.4,5.5114]
[1747962614631,124.12,181.46,181.39,0.04173421]
[1747962615940,5.511,181.42,181.39,0.04173421]
[1747962616433,5.511,181.42,181.39,5.55343421]
[1747962617040,5.511,181.42,181.39,0.04173421]
[1747962618142,5.511,181.42,181.39,5.55363421]
[1747962618642,124.12,181.46,181.39,0.04173421]
[1747962619137,5.5116,181.4,181.39,0.04173421]
[1747962619342,124.08,181.41,181.31,104.78]
[1747962619641,5.5129,181.36,181.31,104.78]
[1747962619939,5.5129,181.36,181.33,5.5135]
[1747962620141,124.08,181.38,181.3,124.08]
[1747962620441,0.03876804,181.36,181.33,5.5136]
[1747962620647,0.03876804,181.36,181.32,0.04250306]
[1747962620940,0.03876804,181.36,181.34,5.5132]
[1747962621143,0.03876804,181.36,181.32,0.04250306]
[1747962621539,0.03876804,181.36,181.33,5.5134]
[1747962621736,0.03876804,181.36,181.32,0.04250306]
[1747962622851,5.5137,181.33,181.32,0.04250306]
[1747962623145,0.03876804,181.36,181.32,0.04250306]
[1747962624040,0.03876804,181.36,181.34,5.5132]
[1747962624238,0.03876804,181.36,181.32,0.04250306]
[1747962624543,5.55186804,181.36,181.32,5.55630306]
[1747962624847,0.03876804,181.36,181.32,0.04250306]
[1747962625145,0.03876804,181.36,181.33,5.5135]
[1747962625546,0.03876804,181.36,181.32,0.04250306]
[1747962626046,5.5132,181.35,181.32,0.04250306]
[1747962626242,0.03876804,181.36,181.32,0.04250306]
[1747962627353,5.5137,181.33,181.32,0.04250306]
[1747962627552,124.08,181.33,181.27,5.5153]
[1747962627845,5.5147,181.3,181.27,5.5153]
[1747962628043,124.08,181.33,181.22,600.92]
[1747962628647,0.0381779,181.29,181.28,5.515]
[1747962630153,126.098,181.4,181.34,5.5131]
[1747962630746,5.5124,181.38,181.34,5.5131]
[1747962631152,5.54743851,181.38,181.34,5.55518322]
[1747962631452,5.54743851,181.38,181.35,5.5131]
[1747962632056,0.03503851,181.38,181.35,5.5131]
[1747962632353,0.03503851,181.38,181.34,0.04208322]
[1747962633455,5.54733851,181.38,181.35,5.5129]
[1747962634959,0.03503851,181.38,181.37,5.5125]
[1747962635646,123.7,181.46,181.44,5.5104]
[1747962635842,123.7,181.46,181.34,5.8088]
[1747962636152,123.7,181.46,181.42,5.5107]
[1747962636353,123.7,181.46,181.34,5.8088]
[1747962636751,123.7,181.46,181.38,0.03914991]
[1747962636952,123.7,181.46,181.38,123.73914991]
[1747962637349,123.7,181.46,181.43,5.5107]
[1747962637660,123.7,181.46,181.43,5.55188543]
[1747962637852,129.2098,181.46,181.43,0.04118543]
[1747962638050,123.7,181.46,181.43,0.04118543]
[1747962638352,123.7,181.46,181.43,5.55188543]
[1747962638654,123.7,181.5,181.43,0.04118543]
[1747962639561,5.5099,181.46,181.43,0.04118543]
[1747962641663,5.5099,181.46,181.43,5.55178543]
[1747962641868,5.5095,181.47,181.43,5.55178543]
[1747962642461,5.5095,181.47,181.44,5.5104]
[1747962642763,123.7,181.5,181.43,0.04118543]
[1747962642967,123.7,181.5,181.45,5.51]
[1747962643267,5.5089,181.49,181.45,5.51]
[1747962643654,123.7,181.5,181.46,5.5097]
[1747962643861,123.7,181.5,181.43,0.04118543]
[1747962644065,129.2088,181.5,181.43,0.04118543]
[1747962644368,129.2088,181.5,181.47,5.5094]
[1747962644570,129.2088,181.5,181.47,0.04225905]
[1747962646171,129.2088,181.5,181.47,5.55165905]
[1747962646774,129.2088,181.5,181.47,0.04225905]
[1747962647574,5.5092,181.48,181.47,0.04225905]
[1747962649473,123.7,181.5,181.38,104.74]
[1747962649474,5.5104,181.45,181.38,104.74]
[1747962649973,123.7,181.5,181.37,123.68]
[1747962650372,123.7,181.5,181.39,5.5119]
[1747962650575,5.5104,181.44,181.43,0.03580689]
[1747962651476,123.64,181.45,181.43,0.03580689]
[1747962652077,129.1503,181.45,181.43,0.03580689]
[1747962652378,123.64,181.45,181.43,0.03580689]
[1747962652973,5.5104,181.44,181.43,0.03580689]
[1747962656479,129.1502,181.45,181.43,0.03580689]
[1747962656884,123.64,181.45,181.43,0.03580689]
[1747962657582,5.5104,181.44,181.43,0.03580689]
[1747962658774,129.1502,181.45,181.43,0.03580689]
[1747962659479,123.64,181.45,181.43,0.03580689]
[1747962660575,123.64,181.45,181.44,5.5104]
[1747962661483,0.03555877,181.46,181.45,5.5101]
[1747962662178,5.11156807,181.51,181.5,5.5086]
[1747962662379,5.11156807,181.51,181.44,3.7215]
[1747962662582,5.11156807,181.51,181.44,108.4615]
[1747962662770,5.11156807,181.51,181.49,5.5088]
[1747962662975,5.11156807,181.51,181.44,108.4615]
[1747962663184,0.02091585,181.49,181.46,0.03963395]
[1747962663781,0.02091585,181.49,181.47,5.5095]
[1747962663979,0.02091585,181.49,181.46,0.03963395]
[1747962664874,0.02091585,181.49,181.48,5.5092]
[1747962666485,0.02091585,181.49,181.46,0.03963395]
[1747962666988,0.02091585,181.49,181.48,5.5092]
[1747962668988,1.585e-05,181.49,181.48,5.5092]
[1747962669187,123.28,181.56,181.54,5.5072]
[1747962669386,123.28,181.56,181.48,123.28]
[1747962669587,123.28,181.56,181.49,2.0123]
[1747962669787,5.5063,181.58,181.49,2.0123]
[1747962669988,476.32,181.59,181.49,2.0123]
[1747962670290,476.32,181.59,181.52,0.03676838]
[1747962670490,476.32,181.59,181.54,5.5072]
[1747962670793,5.5067,181.57,181.54,5.5072]
[1747962670993,476.32,181.59,181.53,5.5076]
[1747962671392,476.32,181.59,181.52,0.03676838]
[1747962672292,5.5076,181.54,181.52,0.03676838]
[1747962672483,476.32,181.59,181.52,0.03676838]
[1747962673194,5.5073,181.55,181.52,5.54456838]
[1747962673590,476.32,181.59,181.52,5.54456838]
[1747962673591,476.32,181.59,181.52,0.03676838]
[1747962675197,4.97248117,181.58,181.45,123.26]
[1747962675392,4.97248117,181.58,181.44,1.8584]
[1747962675591,1.9194,181.57,181.44,1.8584]
[1747962675789,5.5089,181.49,181.45,5.5098]
[1747962675990,5.5089,181.49,181.44,1.8584]
[1747962676191,0.03599266,181.48,181.46,5.5096]
[1747962676393,0.03599266,181.48,181.45,0.03619186]
[1747962676892,0.03599266,181.48,181.47,5.5095]
[1747962677095,5.11156807,181.58,181.46,123.26]
[1747962677397,5.11156807,181.58,181.57,5.5064]
[1747962678397,6.807e-05,181.58,181.57,5.5064]
[1747962679005,0.86614581,181.62,181.61,5.5052]
[1747962679303,13.57499441,181.67,181.6,0.03906018]
[1747962679491,13.57499441,181.67,181.66,5.5037]
[1747962680193,13.57499441,181.67,181.65,5.54420934]
[1747962680597,13.57499441,181.67,181.65,0.04020934]
[1747962680894,476.08,181.72,181.65,0.04020934]
[1747962681694,5.5025,181.71,181.67,5.5034]
[1747962681895,5.5025,181.71,181.67,5.53945164]
[1747962682405,5.5019,181.72,181.68,5.5029]
[1747962682700,5.5019,181.72,181.68,5.5031]
[1747962682902,123.24,181.75,181.68,5.5031]
[1747962683302,5.5018,181.73,181.69,5.5028]
[1747962683499,5.5018,181.73,181.69,5.53996143]
[1747962683698,123.22,181.76,181.69,0.03716143]
[1747962684704,5.5015,181.74,181.7,5.5024]
[1747962684908,123.22,181.76,181.69,0.03716143]
[1747962685205,5.5025,181.7,181.69,0.03716143]
[1747962685907,123.18,181.71,181.57,227.82]
[1747962686102,3.9754,181.69,181.57,227.82]
[1747962686603,5.5051,181.62,181.57,233.3262]
[1747962686911,0.03716143,181.62,181.58,1.90136111]
[1747962687610,0.03716143,181.62,181.58,0.04076111]
[1747962688110,5.54216143,181.62,181.58,5.54666111]
[1747962688409,0.03716143,181.62,181.58,0.04076111]
[1747962688708,0.03716143,181.62,181.58,5.54686111]
[1747962688910,0.03716143,181.62,181.58,0.04076111]
[1747962689611,5.54216143,181.62,181.58,5.54676111]
[1747962689802,0.03716143,181.62,181.58,0.04076111]
[1747962690111,0.03716143,181.62,181.59,5.5056]
[1747962691012,5.54216143,181.62,181.58,5.54686111]
[1747962691310,0.03716143,181.62,181.58,0.04076111]
[1747962691511,0.03716143,181.62,181.6,5.5055]
[1747962691713,0.03716143,181.62,181.58,0.04076111]
[1747962692311,0.03716143,181.62,181.61,5.5052]
[1747962694706,0.03716143,181.62,181.59,1.9151]
[1747962694707,0.03716143,181.62,181.59,7.4207]
[1747962695004,0.03716143,181.62,181.58,123.22076111]
[1747962695208,0.03716143,181.62,181.58,0.04076111]
[1747962695209,5.5055,181.61,181.58,0.04076111]
[1747962695404,0.03716143,181.62,181.58,0.04076111]
[1747962695805,5.5058,181.59,181.58,0.04076111]
[1747962696409,5.5077,181.53,181.5,104.62]
[1747962696608,124.8411,181.61,181.5,104.62]
[1747962696609,126.7651,181.61,181.5,104.62]
[1747962697119,126.7651,181.61,181.53,5.5074]
[1747962697310,126.7651,181.61,181.5,104.62]
[1747962697510,5.54289374,181.57,181.54,0.03867968]
[1747962698714,0.03619374,181.57,181.54,5.54597968]
[1747962699015,0.03619374,181.57,181.54,0.03867968]
[1747962699321,5.54269374,181.57,181.54,0.03867968]
[1747962699614,0.03619374,181.57,181.54,0.03867968]
[1747962700117,0.03619374,181.57,181.55,5.507]
[1747962700602,0.03619374,181.57,181.54,5.54597968]
[1747962700802,0.03619374,181.57,181.54,0.03867968]
[1747962701009,0.03619374,181.57,181.54,122.89867968]
[1747962701209,5.5044,181.64,181.55,1.9002]
[1747962701409,122.86,181.65,181.55,3.7959]
[1747962701617,5.5054,181.61,181.57,5.5064]
[1747962701916,122.86,181.65,181.55,3.7959]
[1747962702211,0.03827831,181.62,181.58,0.04196333]
[1747962702408,122.86,181.65,181.49,227.5]
[1747962702603,5.5055,181.61,181.49,227.5]
[1747962702810,122.86,181.6,181.52,5.5079]
[1747962703120,5.5071,181.55,181.49,227.5]
[1747962703415,0.03661329,181.54,181.5,0.03799339]
[1747962703917,5.54401329,181.54,181.5,0.03799339]
[1747962704116,0.03661329,181.54,181.5,0.03799339]
[1747962704415,0.03661329,181.54,181.5,5.54639339]
[1747962704614,0.03661329,181.54,181.5,0.03799339]
[1747962705015,0.03661329,181.54,181.51,5.508]
[1747962705418,0.03661329,181.54,181.5,0.03799339]
[1747962706218,0.03661329,181.54,181.51,5.508]
[1747962706413,0.03661329,181.54,181.5,0.03799339]
[1747962707419,0.03661329,181.54,181.5,5.54629339]
[1747962707622,0.03661329,181.54,181.5,0.03799339]
[1747962708013,0.03661329,181.54,181.52,5.5077]
[1747962708411,0.03661329,181.54,181.5,0.03799339]
[1747962709322,0.03661329,181.54,181.52,5.5077]
[1747962709516,0.03661329,181.54,181.5,0.03799339]
[1747962709912,5.54421329,181.54,181.5,5.54649339]
[1747962710107,5.54421329,181.54,181.5,0.03799339]
[1747962710312,0.03661329,181.54,181.5,0.03799339]
[1747962711520,5.5083,181.51,181.5,0.03799339]
[1747962712018,5.5095,181.47,181.44,5.5104]
[1747962712712,5.5093,181.48,181.42,122.88]
[1747962712918,122.88,181.5,181.45,5.51]
[1747962713120,0.03979971,181.49,181.46,0.04123687]
[1747962713522,5.54889971,181.49,181.46,0.04123687]
[1747962714324,0.03979971,181.49,181.46,0.04123687]
[1747962715020,0.03979971,181.49,181.47,5.5095]
[1747962715929,0.03979971,181.49,181.48,5.5092]
[1747962717524,0.03979971,181.49,181.46,0.04123687]
[1747962718228,5.54889971,181.49,181.46,5.55093687]
[1747962718530,0.03979971,181.49,181.46,0.04123687]
[1747962719933,5.54879971,181.49,181.46,0.04123687]
[1747962720230,5.54879971,181.49,181.46,5.55093687]
[1747962720632,5.54879971,181.49,181.46,0.04123687]
[1747962720830,5.5093,181.48,181.46,0.04123687]
[1747962721238,0.03979971,181.49,181.46,0.04123687]
[1747962721438,122.92,181.48,181.34,4.27183165]
[1747962721638,130.85373206,181.48,181.34,4.27183165]
[1747962721939,122.92,181.48,181.34,4.27183165]
[1747962722133,476.06,181.49,181.34,4.27183165]
[1747962722333,122.92,181.48,181.34,4.27183165]
[1747962722634,0.03941596,181.43,181.42,5.5108]
[1747962722937,0.03519541,181.44,181.42,5.5108]
[1747962723130,0.03519541,181.44,181.43,5.5107]
[1747962728046,0.03519541,181.44,181.41,0.03968783]
[1747962728447,122.6,181.43,181.41,0.03968783]
[1747962728943,128.1109,181.43,181.41,0.03968783]
[1747962729145,122.6,181.43,181.41,0.03968783]
[1747962730042,5.511,181.42,181.41,0.03968783]
[1747962730547,128.1108,181.43,181.41,0.03968783]
[1747962730741,122.6,181.43,181.41,0.03968783]
[1747962731449,128.1107,181.43,181.41,0.03968783]
[1747962732341,5.511,181.42,181.41,0.03968783]
[1747962732747,122.6,181.43,181.41,5.55098783]
[1747962733450,122.6,181.43,181.41,0.03968783]
[1747962734851,122.6,181.43,181.41,5.55078783]
[1747962735548,122.6,181.43,181.42,5.511]
[1747962735745,0.03519541,181.44,181.41,0.03968783]
[1747962736249,0.03519541,181.44,181.43,5.5107]
[1747962737446,6.99405234,181.56,181.41,104.77968783]
[1747962737644,122.64,181.55,181.41,109.71125234]
[1747962738354,1.9876,181.56,181.42,11.022]
[1747962738560,0.04191451,181.51,181.47,0.03947576]
[1747962738855,0.04191451,181.51,181.48,122.64]
[1747962739052,0.04191451,181.51,181.5,5.5086]
[1747962740555,5.5065,181.57,181.49,104.74]
[1747962741057,598.88,181.58,181.49,104.74]
[1747962741554,0.038259,181.55,181.52,0.03627959]
[1747962741753,0.038259,181.55,181.52,5.54397959]
[1747962742055,0.038259,181.55,181.52,0.03627959]
[1747962743356,5.5076,181.54,181.52,0.03627959]
[1747962743653,0.038259,181.55,181.52,0.03627959]
[1747962744150,0.038259,181.55,181.52,5.54397959]
[1747962744354,0.038259,181.55,181.52,0.03627959]
[1747962744854,0.038259,181.55,181.54,5.5073]
[1747962749362,122.58,181.66,181.53,127.55125234]
[1747962749652,6.82084846,181.67,181.59,4.97125234]
[1747962749959,5.1164358,181.66,181.6,227.26]
[1747962750363,0.03673139,181.65,181.61,0.04008553]
[1747962750559,0.03673139,181.65,181.64,5.5043]
[1747962752347,0.03673139,181.65,181.61,0.04008553]
[1747962753954,5.5048,181.63,181.61,0.04008553]
[1747962754858,0.03673139,181.65,181.61,0.04008553]
[1747962755359,0.03673139,181.65,181.64,5.5043]
[1747962758765,122.18,181.73,181.68,5.5028]
[1747962759150,5.5021,181.72,181.61,122.18]
[1747962759354,5.5021,181.72,181.69,5.5028]
[1747962759761,5.5021,181.72,181.69,5.53787595]
[1747962760363,5.5022,181.71,181.69,0.03507595]
[1747962760664,122.18,181.73,181.69,0.03507595]
[1747962761368,5.5021,181.72,181.69,5.53787595]
[1747962761662,122.18,181.73,181.69,0.03507595]
[1747962762066,122.18,181.73,181.71,5.502]
[1747962762465,122.18,181.79,181.75,5.501]
[1747962762657,5.1164358,181.81,181.75,0.04067491]